Cogmind - Beta 13 @@@ ROGUE MODE // 2024.08.04 @ 17:32:35 Player: raftar Result: Destroyed by 94-HT4(R) with Subdweller Laser Performance ------------- Evolutions (0) 0 Regions Visited (3) 600 Robots Destroyed (41) 205 Value Destroyed (913) 913 Prototype IDs (0) 0 Alien Tech Used (0) 0 Bonus (-152) -152 TOTAL SCORE: 1566 Bonus ------- Follower Combat Kills 35 Friendly Fire -187 Cogmind --------- Core Integrity 0/250 Matter 284/300 Energy 160/160 System Corruption 0% Temperature Cool (6) Movement Treading (242) Ox1 Location -10/Subcaves Parts ------- > --- POWER (1) -------- Light Nuclear Core > --- PROPULSION (2) --- Spiked Treads Advanced Treads > --- UTILITY (2) ------ High-capacity Storage Unit Signal Interpreter > --- WEAPON (2) ------- Riot Gun Assault Rifle > --- INVENTORY (20) --- Light Ion Engine Subdweller Monowheel Cesium-ion Thruster Humpback ECM Suite Improved Utility Shielding Scrap Shield Beam Cannon Beam Cannon Subdweller Beam Cannon Flamer Scrap Shield Fragment (48) Scrap Shield Fragment (47) Peak State ------------ > --- POWER ------------ Light Nuclear Core > --- PROPULSION ------- Spiked Treads Advanced Treads > --- UTILITY ---------- High-capacity Storage Unit Signal Interpreter > --- WEAPON ----------- Riot Gun Subdweller Laser > --- INVENTORY -------- Light Ion Engine Subdweller Monowheel Cesium-ion Thruster ECM Suite Improved Utility Shielding Scrap Shield Beam Cannon Beam Cannon Subdweller Beam Cannon Assault Rifle Flamer Scrap Shield Fragment [Rating: 17] Favorites ----------- Power Ion Engine Engine Ion Engine Power Core Light Nuclear Core Propulsion Light Treads Treads Light Treads Utility High-capacity Storage Unit Storage High-capacity Storage Unit Processor Signal Interpreter Weapon Beam Cannon Energy Gun Subdweller Laser Energy Cannon Beam Cannon Ballistic Gun Assault Rifle Launcher Grenade Launcher Build | -11 -10 -10 -10 ------- Run | Yrd Mat Min Sub Slots Evolved . | . . . . Power . | . . . . Propulsion . | . . . . Utility . | . . . . Weapon . | . . . . Parts Attached 24 | 5 7 2 10 Power 3 | 1 1 . 1 Engine 2 | 1 1 . . Core 1 | . . . 1 Reactor . | . . . . Propulsion 8 | 2 2 1 3 Treads 8 | 2 2 1 3 Leg . | . . . . Wheel . | . . . . Hover . | . . . . Flight . | . . . . Utility 3 | 1 2 . . Device . | . . . . Storage 2 | 1 1 . . Processor 1 | . 1 . . Hackware . | . . . . Protection . | . . . . Artifact . | . . . . Weapon 10 | 1 2 1 6 Energy Gun 3 | . . . 3 Energy Cannon 3 | . 1 . 2 Ballistic Gun 2 | 1 . . 1 Ballistic Cannon . | . . . . Launcher 2 | . 1 1 . Special Weapon . | . . . . Impact Weapon . | . . . . Slashing Weapon . | . . . . Piercing Weapon . | . . . . Special Melee Weapon . | . . . . Unidentified Prototypes . | . . . . Parts Lost 12 | . 3 1 8 Power 2 | . 1 . 1 Propulsion 5 | . 2 . 3 Utility . | . . . . Weapon 5 | . . 1 4 Highest Loss Streak 4 | . 2 1 4 To Critical Strikes . | . . . . Average Slot Usage (%) 90 | . 78 99 96 Engine 10 | . 13 14 6 Core 3 | . . . 7 Treads 21 | . 10 27 26 Storage 14 | . 14 14 14 Processor 12 | . 10 14 14 Energy Gun 6 | . . . 13 Energy Cannon 8 | . 13 14 3 Ballistic Gun 5 | . 10 . 3 Launcher 6 | . 3 14 6 Naked Turns . | . . . . Heaviest Build 55 | 10 55 51 52 Greatest Support 42 | 40 40 40 42 Greatest Overweight (x) 18 | . 18 2 2 Average Overweight (x) 1 | . 4 1 1 Largest Inventory Capacity 20 | 8 20 20 20 Average Capacity 19 | 7 17 20 20 Most Carried 16 | 5 8 10 16 Average Carried 9 | 1 3 7 14 Final Capacity 20 | 8 20 20 20 Final Carried 15 | 1 7 9 15 Class Distribution -------------------- 100% | Mutant Dominant Class ---------------- Mutant | -10/Materials Mutant | -10/Mines Mutant | -10/Subcaves Resources | -11 -10 -10 -10 ----------- Run | Yrd Mat Min Sub Matter Collected 810 | 173 236 172 229 Remotely . | . . . . Salvage Created 1075 | . 503 230 342 Parts 75 | . 24 29 22 Haulers Intercepted 2 | . 2 . . Recyclers Shooed 1 | . 1 . . Parts Field Recycled . | . . . . Retrieved Matter . | . . . . Parts Self-Destructed 4 | . . . 4 Prevented . | . . . . Kills | -11 -10 -10 -10 ------- Run | Yrd Mat Min Sub Combat Hostiles Destroyed 30 | . 8 11 11 Guns 6 | . 2 . 4 Cannons 10 | . 6 3 1 AOE 13 | . . 8 5 Classes Destroyed 9 | . 7 1 1 Worker 3 | . 2 1 . Tunneler 1 | . . 1 . Hauler 2 | . 2 . . Recycler 2 | . 2 . . Operator 1 | . 1 . . Watcher 1 | . 1 . . Swarmer 13 | . 4 6 3 Grunt 10 | . 4 5 1 Subdweller 8 | . . . 8 Best Kill Streak 5 | . 5 3 4 Combat Bots Only 4 | . 3 3 4 Max Kills in Single Turn 3 | . 1 3 2 Gunslinging . | . . . . Exploded 2 | . . 2 2 Melee . | . . . . Uniques/NPCs Destroyed . | . . . . Combat | -11 -10 -10 -10 -------- Run | Yrd Mat Min Sub Hostile Shots Fired 151 | . 73 25 53 Missed 47 | . 20 10 17 Damage Taken 1886 | . 603 250 1033 Core 252 | . 60 40 152 Absorbed by Shields . | . . . . Core Remaining (%) 100 | 100 . . . Volleys Fired 112 | . 46 19 47 Largest 2 | . 2 2 2 Hottest 120 | . 90 90 120 Shots Fired 201 | . 87 34 80 Gun 84 | . 37 . 47 Cannon 86 | . 46 19 21 Launcher 31 | . 4 15 12 Special . | . . . . Kinetic 42 | . 37 . 5 Thermal 115 | . 46 19 50 Explosive 31 | . 4 15 12 Electromagnetic 13 | . . . 13 Robot Hit Streak 11 | . 10 7 11 Robot Miss Streak 5 | . 5 2 3 Penetration Max . | . . . . Secondary Targets . | . . . . Shots Hit Robots 117 | . 56 11 50 Core Hits 64 | . 19 23 22 Critical Kills 1 | . . . 1 Critical Parts Destroyed . | . . . . Critical Strikes 1 | . . . 1 Meltdown 1 | . . . 1 Melee Attacks . | . . . . Impact . | . . . . Slashing . | . . . . Piercing . | . . . . Sneak Attacks . | . . . . Combat Hostiles . | . . . . Follow-up Attacks . | . . . . Damage Inflicted 3028 | . 955 713 1360 Guns 755 | . 257 . 498 Cannons 972 | . 572 171 229 Explosions 1301 | . 126 542 633 Melee . | . . . . Ramming . | . . . . Kinetic 294 | . 257 . 37 Thermal 1239 | . 572 171 496 Explosive 1301 | . 126 542 633 Electromagnetic 194 | . . . 194 Impact . | . . . . Slashing . | . . . . Piercing . | . . . . Highest Corruption . | . . . . Average Corruption . | . . . . Corruption Purged . | . . . . Corruption Blocked . | . . . . Overload Shots . | . . . . Overflow Damage 5 | . 2 3 . Projectiles 2 | . 2 . . Explosions 3 | . . 3 . Melee . | . . . . Knockbacks . | . . . . Impact . | . . . . Kinetic . | . . . . Secondary . | . . . . Self-Inflicted Damage 118 | . 58 60 . Shots 6 | . 3 3 . Rammed . | . . . . Targets Rammed . | . . . . Kicked . | . . . . Crushed . | . . . . Highest Temperature 289 | . 289 120 54 Average Temperature 74 | . 92 44 30 Received Heat Transfer 414 | . 228 78 108 Effects 1 | . 1 . . Interference 1 | . 1 . . Siege Activations . | . . . . Robots Corrupted . | . . . . Combat Hostiles . | . . . . Parts Fried 1 | . . . 1 Impact Corruptions . | . . . . Robots Melted 1 | . . . 1 Combat Hostiles 1 | . . . 1 Parts Melted 5 | . 4 1 . Heat Transferred 2397 | . 1221 370 806 Parts Sabotaged . | . . . . Parts Stolen . | . . . . Parts Stripped . | . . . . Power Chain Reactions . | . . . . Alert | -11 -10 -10 -10 ------- Run | Yrd Mat Min Sub Peak Influence 272 | . 187 272 . Initial 8 | . . 8 . Average 52 | . 23 110 . Maximum Alert Level 1 | . . 1 . Low Security (%) 98 | 100 100 95 . Level 1 1 | . . 4 . Level 2 . | . . . . Level 3 . | . . . . Level 4 . | . . . . Level 5 . | . . . . High Security . | . . . . Max Security . | . . . . Squads Dispatched 1 | . 1 . . Investigation . | . . . . Extermination . | . . . . Reinforcement 1 | . 1 . . Assault . | . . . . Garrison . | . . . . Intercept . | . . . . Searches Triggered . | . . . . Construction Impeded . | . . . . Haulers Reinforced . | . . . . Active Scanning Responses . | . . . . Cargo Convoy Interrupts . | . . . . Stealth | -11 -10 -10 -10 --------- Run | Yrd Mat Min Sub Distress Signals 1 | . 1 . . Communications Jammed . | . . . . Distress Signals . | . . . . Times Spotted 44 | . 18 12 14 Peak Tracking Total 5 | . 5 3 3 Tactical Retreats 1 | . . 1 . Traps | -11 -10 -10 -10 ------- Run | Yrd Mat Min Sub Traps Triggered 5 | . . 2 3 Indirectly . | . . . . Trap Hack Attempts . | . . . . Triggered . | . . . . Disarmed . | . . . . Reprogrammed . | . . . . Reused . | . . . . Traps Extracted . | . . . . Installed . | . . . . Triggered . | . . . . Machines | -11 -10 -10 -10 ---------- Run | Yrd Mat Min Sub Machines Disabled 6 | . . 6 . Max in Single Turn 4 | . . 4 . Machines Repaired . | . . . . Machines Dismantled . | . . . . Machines Sabotaged . | . . . . Overloaded Fab Kills . | . . . . Hacking | -11 -10 -10 -10 --------- Run | Yrd Mat Min Sub Machines Accessed 2 | . 1 1 . Terminals 1 | . 1 . . Fabricators . | . . . . Repair Stations . | . . . . Recycling Units . | . . . . Scanalyzers . | . . . . Garrison Access . | . . . . Total Hacks 2 | . 1 1 . Successful 2 | . 1 1 . Failed . | . . . . Catastrophic . | . . . . Database Lockouts . | . . . . Manual . | . . . . Terminals 1 | . 1 . . Fabricators . | . . . . Repair Stations . | . . . . Recycling Units . | . . . . Scanalyzers . | . . . . Garrison Access . | . . . . Terminal Hacks 2 | . 1 1 . Open Door 1 | . . 1 . Alert Level 1 | . 1 . . Fabricator Hacks . | . . . . Repair Station Hacks . | . . . . Recycling Unit Hacks . | . . . . Scanalyzer . | . . . . Garrison Access Hacks . | . . . . Unauthorized Hacks . | . . . . Terminals . | . . . . Fabricators . | . . . . Repair Stations . | . . . . Recycling Units . | . . . . Scanalyzers . | . . . . Garrison Access . | . . . . Data Cores Recovered . | . . . . Used . | . . . . Hacking Detections . | . . . . Full Trace Events . | . . . . Feedback Events . | . . . . Feedback Blocked . | . . . . Robot Schematics Acquired . | . . . . Robots Built . | . . . . Authchips . | . . . . Time . | . . . . Total Robot Build Rating . | . . . . Part Schematics Acquired . | . . . . Parts Built . | . . . . Authchips . | . . . . Time . | . . . . Total Part Build Rating . | . . . . Parts Repaired . | . . . . Time . | . . . . Parts Recycled . | . . . . Recycled Matter . | . . . . Retrieved Matter . | . . . . Retrieved Components . | . . . . Parts Scanalyzed . | . . . . Part Schematics Acquired . | . . . . Parts Damaged . | . . . . Bothacking | -11 -10 -10 -10 ------------ Run | Yrd Mat Min Sub Used RIF Installer . | . . . . Robots Hacked . | . . . . Non-combat . | . . . . Combat . | . . . . Robot Hacks Applied . | . . . . Relay Couplers Released . | . . . . Fabnet Peak Effective % . | . . . . Robots Rewired . | . . . . Allies Hacked . | . . . . Hacks Repelled . | . . . . Allies | -11 -10 -10 -10 -------- Run | Yrd Mat Min Sub Total Allies 3 | . . 3 . Largest Group 3 | . . 3 3 Highest-Rated Group 40 | . . 40 40 Highest-Rated Ally 16 | . . 16 16 Total Orders . | . . . . Ally Attacks 16 | . . 3 13 Total Damage 189 | . . 37 152 Kills 1 | . . 1 . Allies Corrupted . | . . . . Allies Melted . | . . . . Intel | -11 -10 -10 -10 ------- Run | Yrd Mat Min Sub Robot Analysis Total . | . . . . Derelict Logs Recovered 4 | . . 1 3 Drone Launches . | . . . . Drone Recoveries . | . . . . Exploration | -11 -10 -10 -10 ------------- Run | Yrd Mat Min Sub Turns Passed 7189 | 51 2360 1218 3560 Spaces Moved 2455 | 33 592 459 1371 Core 130 | 11 119 . . Treads 2325 | 22 473 459 1371 Legs . | . . . . Wheels . | . . . . Hover . | . . . . Flight . | . . . . Fastest Speed 50 | 50 160 240 240 Average Speed 274 | 123 371 240 248 Slowest Speed 950 | 160 950 320 320 Overloaded Moves . | . . . . Propulsion Burnouts . | . . . . Robots Hopped . | . . . . Cave-ins Triggered . | . . . . Exploration Rate (%) 61 | 5 95 78 66 Regions Visited 3 Branch Regions 2 Pre-discovered Areas 1 | . . . 1 Known Exits Taken 2 | . 1 1 . Unknown Exits Taken 1 | 1 . . . Scrap Searched 6 | . . 2 4 Spaces Dug 7 | . . 6 1 Terrain Destroyed 166 | . 14 97 55 Melee . | . . . . Projectile 2 | . . . 2 AOE 164 | . 14 97 53 Terrain Rammed . | . . . . Walls Destroyed . | . . . . Machines Disabled . | . . . . Actions | -11 -10 -10 -10 --------- Run | Yrd Mat Min Sub Total 2691 | 43 667 540 1441 Wait 68 | . 10 57 1 Move 2452 | 32 591 458 1371 Hop . | . . . . Pick Up 34 | 6 12 4 12 Fast Attach . | . . . . Attach 21 | 5 6 2 8 Detach . | . . . . Swap 3 | . 1 . 2 Drop 1 | . 1 . . Fire 112 | . 46 19 47 Melee . | . . . . Ram . | . . . . Kick . | . . . . Crush . | . . . . Escape Stasis . | . . . . Rewire . | . . . . Trap . | . . . . Miscellaneous . | . . . . Route ------- -11/Scrapyard -10/Materials (discovered 4 exits: *Mat x3 / *Min) -10/Mines (discovered 2 exits: *Mat / *Sub) -10/Subcaves History --------- Turn | Location | Event 10 | -11/Scrapyard | Discovered new exit (range 15) 52 | -11/Scrapyard | Entered Materials 303 | -10/Materials | Build established: Mutant 540 | -10/Materials | Discovered new exit (range 8) 619 | -10/Materials | Identified exit to Materials 1413 | -10/Materials | Discovered exit to Materials (range 16) 2105 | -10/Materials | Discovered exit to Materials (range 15) 2257 | -10/Materials | Discovered new exit (range 6) 2407 | -10/Materials | Identified exit to Mines 2412 | -10/Materials | Entered Mines 3036 | -10/Mines | Met a Derelict who couldn't figure out how to use a Trap Extractor 3349 | -10/Mines | Discovered exit to Materials (range 5) 3358 | -10/Mines | Assisted by bots powering up and referring to "LRC-V3" 3610 | -10/Mines | Discovered new exit (range 9) 3628 | -10/Mines | Identified exit to Subcaves 3630 | -10/Mines | Entered Subcaves 3630 | -10/Subcaves | Accompanied by 3 allies 3630 | -10/Subcaves | Learned Materials garrison access intel 3689 | -10/Subcaves | Lost 3 allies 3765 | -10/Subcaves | Shifting Twisted Machinery released Sub. Laser 3784 | -10/Subcaves | Shifting Twisted Machinery released Flamer 3806 | -10/Subcaves | Learned location of Zion (-7) 3806 | -10/Subcaves | Met a Zionite searching for "candidates" 3830 | -10/Subcaves | Learned Materials terminal intel 4149 | -10/Subcaves | A swath of the cavern ceiling suddenly collapsed 4909 | -10/Subcaves | Shifting Twisted Machinery released Sub. Beam Cannon 4921 | -10/Subcaves | Shifting Twisted Machinery released Spk. Treads 5117 | -10/Subcaves | Learned 4 Materials zone layouts 5190 | -10/Subcaves | Core integrity fell below 50% 5267 | -10/Subcaves | Ambushed by Subdweller buried in earth 5308 | -10/Subcaves | Lost 4 parts (1p2n1w) 5689 | -10/Subcaves | A swath of the cavern ceiling suddenly collapsed 6265 | -10/Subcaves | Core integrity fell below 20% 7190 | -10/Subcaves | Destroyed by 94-HT4(R) with Subdweller Laser Last Messages --------------- 06318_ Found Piercing Trap. 06318_ Found 24 Matter. 06323_ Searching scrap... 06323_ Found Flamer. 06323_ Found Scrap Shield. 06323_ Found 22 Matter. 06325_ Searching scrap... 06325_ Found Sub. Power Source. 06325_ Found Battle Rifle. 06325_ Found 15 Matter. 06763_ Triggered Piercing Trap. 06763_ Spikes shoot up from the floor. 06763_ Critical hit (Impale). 06801_ Triggered Piercing Trap. 06801_ Spikes shoot up from the floor. 06801_ Critical hit (Impale). 06813_ Triggered Piercing Trap. 06813_ Spikes shoot up from the floor. 06813_ Critical hit (Impale). 06813_ Riot Gun destroyed. Map ----- +----------------------------------------------------+ | ?????# ????????????###?"??????????????????????? | | ?????? ##??????????#"## ??????????????????????? | | ?????## "#??????????# ???????????????????????? | | ##?###" "###????????# ???????????????????????? | | ### " ###??###?# #???????????????????????? | | ### ### #???????????????????????? | | ##?# ## #???????????????????????? | | ### #??# ###?????????????????????? | | ## #???# ##????????????????????? | | ##???# ##???????????????????? | | ##????# ###?????????????????? | | ##????### #?????????????????? | | ## ###????## ##?????????????????? | | ## ### ####??# ##??????????????????? | | #### #??# ##???????????????????? | | ## #??# ##???????????????????? | | #### ##?## #???????????????????? | | ### #??# ######??# RR #???????????????????? | | & #??## ###??????## #???????????????????? | | ## ##???# #####???# #???????????????????? | | # #???# ###" "#???## ####????????????????? | | ## ###?# """ "#????# ###??????????????? | | ?## #"## # #"#"#????# ##?????????????? | | ??## "####### #"###???# #?????????????? | | ???## """""######"#"#???# ##?????????????? | | ????###"#""##" ""##"#####@ ##??????????????? | | ??????##""#"""#""""" "## ####???????????????? | | ???????##"#""##""####"## #??????????????????? | | ????????###""###"# #"# #??????????????????? | | ?????????##""######### ### #??????????????????? | | ??????????####??????######?###??????????????????? | | ????????????????????????????????????????????????? | | ????????????????????????????????????????????????? | | ????????????????????????????????????????????????? | | ????????????????????????????????????????????????? | | ????????????????????????????????????????????????? | | ????????????????????????????????????????????????? | | ????????????????????????????????????????????????? | | ????????????????????????????????????????????????? | | ????????????????????????????????????????????????? | | ????????????????????????????????????????????????? | | ????????????????????????????????????????????????? | | ????????????????????????????????????????????????? | | ????????????????????????????????????????????????? | | ????????????????????????????????????????????????? | | ????????????????????????????????????????????????? | | | | | | | | | +----------------------------------------------------+ Best States ------------- Heat Dissipation 25 Energy Generation 14 Energy Capacity 250 Matter Stores 300 Matter Capacity 300 Sight Range 16 Terrain Scan Density 10 Evasion (%) 50 Recoil Reduction 2 Item Schematics ----------------- None Robot Schematics ------------------ None Fabricated ------------ Nothing Alien Tech Used ----------------- None Achievements -------------- Backstab Challenges ------------ None Game ------ Seed TransmissionWeaponsScreen Manual? 0 Play Time 00:23:13 Cumulative 9.7 hours Start 2024.08.04 @ 17:10:34 End 2024.08.04 @ 17:32:35 Sessions 1 Manual Loads 0 Difficulty Rogue Special Mode None Game No. 16 Rogue 16 Adventurer 0 Explorer 0 Win Type - Total 0 Types 0/0/0/0/0/0/0/0/0 Lore% 8 Gallery% 15 Achievement% 16 Wizard Run 0 Options --------- Layout 1 ASCII 0 Keyboard 0 Movement Mouse Keybinds 0 Fullscreen 1 Font 24/Smallcaps Map View 76x35 Zoom Use 0% Tactical HUD 1 Map Filters NONE Filters NONE Steam 1 RUN: 6580e226-124a-4d43-96be-d9c45fbf4df5